fUSD/lending_fUSD_20251103
["ID","MTS","AMOUNT","RATE_DAILY","PERIOD"]
[392935123,1762156232713,-300.0,0.00014654,2]
[392935124,1762156232724,-300.0,0.00014654,2]
[392935125,1762156232733,-300.0,0.00014654,2]
[392935126,1762156232742,-1843.0,0.00014655,2]
[392935127,1762156232751,-1200.0,0.00014737,2]
[392935128,1762156232760,-1843.0,0.00014739,2]
[392935129,1762156232769,-1843.0,0.00014768,2]
[392935130,1762156232778,-248.71531821,0.00014768,2]
[392935131,1762156232787,-500.0,0.00014779,2]
[392935132,1762156232797,-500.0,0.00014779,2]
[392935134,1762156232809,-1843.0,0.00014856,2]
[392935135,1762156232818,-1843.0,0.0001486,2]
[392935137,1762156232827,-151.0,0.00014871,2]
[392935139,1762156232836,-151.0,0.00014871,2]
[392935141,1762156232847,-322.6107,0.00014871,2]
[392935143,1762156232855,-151.0,0.00014871,2]
[392935145,1762156232865,-200.0,0.00014871,2]
[392935146,1762156232874,-500.0,0.00014871,2]
[392935148,1762156232883,-514.84070869,0.00014871,2]
[392935150,1762156232893,-504.6181,0.00014877,2]
[392935152,1762156232902,-1000.0,0.00014879,2]
[392935154,1762156232911,-150.0,0.00014879,2]
[392935156,1762156232921,-2010.26910585,0.00014879,2]
[392935158,1762156232929,-11821.8315,0.0001488,2]
[392935160,1762156232938,-200.0,0.0001488,2]
[392935162,1762156232947,-5000.0,0.0001488,2]
[392935164,1762156232956,-1000.0,0.0001488,2]
[392935166,1762156232965,-284.52928108,0.0001488,2]
[392935168,1762156232974,-2010.26910579,0.00014881,2]
[392935170,1762156232983,-2010.26910579,0.00014884,2]
[392935172,1762156232992,-563.2419996,0.00014886,2]
[392935174,1762156233000,-2010.26910579,0.00014886,2]
[392935176,1762156233010,-563.24199958,0.00014888,2]
[392935178,1762156233018,-2010.26910579,0.00014888,2]
[392935180,1762156233027,-295.21718508,0.0001489,2]
[392935182,1762156233036,-477.72403831,0.0001489,2]
[392935184,1762156233044,-1868.9133615,0.0001489,2]
[392935186,1762156233054,-348.46124135,0.0001489,2]
[392935188,1762156233063,-563.24199958,0.00014891,2]
[392935190,1762156233072,-2010.26910579,0.00014891,2]
[392935192,1762156233081,-295.21718507,0.00014891,2]
[392935194,1762156233090,-1868.91336147,0.00014891,2]
[392935196,1762156233098,-348.46124129,0.00014891,2]
[392935198,1762156233108,-295.21718507,0.00014892,2]
[392935200,1762156233117,-1868.91336147,0.00014892,2]
[392935202,1762156233126,-500.0,0.00014893,2]
[392935204,1762156233135,-500.0,0.00014893,2]
[392935206,1762156233143,-500.0,0.00014893,2]
[392935208,1762156233152,-500.0,0.00014893,2]
[392935210,1762156233161,-500.0,0.00014893,2]
[392935212,1762156233170,-450.57549168,0.00014893,2]
[392935214,1762156233178,-348.46124129,0.00014893,2]
[392935216,1762156233187,-563.24199958,0.00014893,2]
[392935218,1762156233196,-2010.26910579,0.00014893,2]
[392935220,1762156233204,-295.21718507,0.00014893,2]
[392935222,1762156233214,-1868.91336147,0.00014893,2]
[392935224,1762156233223,-607.0,0.00014894,2]
[392935226,1762156233232,-1533.135,0.00014894,2]
[392935227,1762156233241,-1595.0,0.00014894,2]
[392935229,1762156233249,-1271.0,0.00014894,2]
[392935231,1762156233258,-2140.0,0.00014894,2]
[392935233,1762156233267,-677.168,0.00014894,2]
[392935235,1762156233276,-5765.176,0.00014894,2]
[392935237,1762156233285,-348.46124129,0.00014894,2]
[392935239,1762156233294,-295.21718507,0.00014894,2]
[392935241,1762156233303,-1868.91336147,0.00014894,2]
[392935243,1762156233312,-477.72403829,0.00014895,2]
[392935246,1762156233322,-563.24199958,0.00014895,2]
[392935247,1762156233331,-295.21718507,0.00014896,2]
[392935249,1762156233341,-1868.91336147,0.00014896,2]
[392935251,1762156233350,-348.46124129,0.00014896,2]
[392935254,1762156233359,-295.21718507,0.00014897,2]
[392935256,1762156233368,-563.24199958,0.00014898,2]
[392935258,1762156233378,-295.21718507,0.00014898,2]
[392935260,1762156233387,-295.21718507,0.00014899,2]
[392935262,1762156233397,-938.96,0.000149,2]
[392935264,1762156233406,-3242.71188726,0.000149,2]
[392935265,1762156233415,-563.24199958,0.000149,2]
[392935268,1762156233424,-158.86102011,0.000149,2]
[392935269,1762156233433,-150.0,0.000149,2]
[392935272,1762156233442,-791.65712035,0.000149,2]
[392935274,1762156233452,-295.21718507,0.000149,2]
[392935276,1762156233461,-150.0,0.000149,2]
[392935278,1762156233470,-216.09991313,0.000149,2]
[392935280,1762156233480,-477.72403829,0.000149,2]
[392935282,1762156233489,-500.0,0.000149,2]
[392935284,1762156233498,-500.0,0.000149,2]
[392935286,1762156233507,-301.56974275,0.000149,2]
[392935288,1762156233516,-189.42492089,0.000149,2]
[392935290,1762156233526,-203.97594528,0.000149,2]
[392935292,1762156233534,-150.0,0.000149,2]
[392935294,1762156233543,-664.0,0.000149,2]
[392935296,1762156233552,-150.0,0.000149,2]
[392935298,1762156233561,-877.0,0.000149,2]
[392935300,1762156233570,-1843.0,0.00014927,2]
[392935302,1762156233579,-173.0,0.00014959,2]
[392935304,1762156233588,-199.40832095,0.00014959,2]
[392935306,1762156233597,-150.0,0.00014959,2]
[392935308,1762156233607,-312.09962322,0.0001497,2]
[392935310,1762156233616,-199.2262633,0.00014973,2]
[392935312,1762156233625,-500.0,0.00014973,2]
[392935314,1762156233634,-500.0,0.00014973,2]
[392935316,1762156233643,-500.0,0.00014973,2]
[392935318,1762156233651,-160.4397201,0.00014973,2]
[392935319,1762156233660,-500.0,0.00014973,2]
[392935321,1762156233669,-500.0,0.00014973,2]
[392935323,1762156233683,-566.87953643,0.00014973,2]
[392935326,1762156233692,-500.0,0.00014973,2]
[392935327,1762156233701,-337.82055885,0.00014973,2]
[392935329,1762156233710,-500.0,0.00014973,2]
[392935331,1762156233720,-505.32690918,0.00014973,2]
[392935333,1762156233729,-500.60577954,0.00014973,2]
[392935335,1762156233738,-500.69313067,0.00014973,2]
[392935337,1762156233747,-500.0,0.00014973,2]
[392935339,1762156233756,-410.35411142,0.00014973,2]
[392935341,1762156233765,-500.0,0.00014973,2]
[392935343,1762156233773,-500.0,0.00014973,2]
[392935345,1762156233782,-500.0,0.00014973,2]
[392935347,1762156233791,-500.95705604,0.00014973,2]
[392935349,1762156233800,-500.0,0.00014973,2]
[392935351,1762156233812,-500.0,0.00014973,2]
[392935353,1762156233821,-506.84609563,0.00014973,2]
[392935355,1762156233830,-500.0,0.00014973,2]
[392935357,1762156233838,-387.51376257,0.00014973,2]
[392935359,1762156233850,-500.0,0.00014978,2]
[392935361,1762156233859,-390.78804401,0.00014978,2]
[392935363,1762156233868,-185.70568096,0.00014978,2]
[392935365,1762156233879,-421.29473556,0.00014978,2]
[392935367,1762156233888,-194.90631489,0.00014978,2]
[392935369,1762156233903,-17497.2447744,0.00014979,2]
[392935371,1762156233911,-1251.360851,0.00014979,2]
[392935374,1762156233922,-500.0,0.00014979,2]
[392935376,1762156233931,-345.92808519,0.00014979,2]
[392935377,1762156233939,-500.0,0.00014979,2]
[392935379,1762156233948,-500.0,0.00014979,2]
[392935381,1762156233957,-425.64626727,0.00014979,2]
[392935383,1762156233965,-19739.7627649,0.00014979,2]
[392935385,1762156233974,-65081.98114893,0.00014979,2]
[392935390,1762156234008,-287.32390379,0.00014979,2]
[392935392,1762156234019,-2982.3237834,0.00014979,2]
[392935643,1762156238244,-2010.26910579,0.00014895,2]
[392935644,1762156238253,-1868.91336147,0.00014897,2]
[392935645,1762156238263,-348.46124129,0.00014897,2]
[392935646,1762156238272,-7645.14301148,0.00014979,2]
[392935647,1762156238282,-3152.2757121,0.00014979,2]
[392935648,1762156238290,-500.0,0.00014979,2]
[392935649,1762156238299,-500.0,0.00014979,2]
[392935650,1762156238308,-500.0,0.00014979,2]
[392935651,1762156238317,-500.0,0.00014979,2]
[392935652,1762156238326,-500.0,0.00014979,2]
[392935653,1762156238335,-500.0,0.00014979,2]
[392935654,1762156238344,-500.0,0.00014979,2]
[392935655,1762156238354,-500.0,0.00014979,2]
[392935656,1762156238363,-500.0,0.00014979,2]
[392935657,1762156238372,-500.0,0.00014979,2]
[392935658,1762156238381,-500.0,0.00014979,2]
[392935659,1762156238390,-500.0,0.00014979,2]
[392935660,1762156238399,-500.0,0.00014979,2]
[392935661,1762156238408,-500.0,0.00014979,2]
[392935662,1762156238417,-332.53820263,0.00014979,2]
[392935663,1762156238426,-3333.0954728,0.00014979,2]
[392935664,1762156238435,-666.0,0.00014979,2]
[392935665,1762156238445,-666.0,0.00014979,2]
[392935666,1762156238454,-3847.0,0.0001498,2]
[392935667,1762156238463,-6388.62121775,0.0001498,2]
[392935668,1762156238474,-4671.09434839,0.0001498,2]
[392935669,1762156238487,-707.96942796,0.0001498,2]
[392935670,1762156238518,-6776.29969558,0.0001498,2]
[392935694,1762156240369,-348.46124129,0.00014899,2]
[392935695,1762156240378,-5374.12185292,0.0001498,2]
[392935696,1762156240430,-538.8285509,0.0001498,2]
[392935697,1762156240656,-1852.8289542,0.0001498,2]
[392935698,1762156240678,-2478126.52097881,0.0001498,2]
[392935699,1762156240688,-312.09962322,0.0001499,2]
[392935700,1762156240696,-312.09962322,0.0001499,2]
[392935701,1762156240705,-2930.86954552,0.00014998,2]
[392935702,1762156240715,-155.0,0.00014999,2]
[392935703,1762156240724,-500.0,0.00014999,2]
[392935704,1762156240734,-266.17310046,0.00014999,2]
[392935705,1762156240743,-666.0,0.00014999,2]
[392935706,1762156240752,-2841.01325068,0.00015,2]
[392935707,1762156240761,-569680.63063992,0.00015,2]
[392935708,1762156240770,-426545.19542561,0.00015,2]
[392935730,1762156243485,-200.0,0.00014894,2]
[392935731,1762156243495,-2010.26910579,0.00014898,2]
[392935732,1762156243504,-1868.91336147,0.00014898,2]
[392935733,1762156243513,-1000.0,0.00014999,2]
[392935734,1762156243522,-593.12438034,0.00014999,2]
[392935735,1762156243531,-9215.86628873,0.00015,2]
[392935736,1762156243542,-6107.2870032,0.00015,2]
[392935737,1762156243552,-797.76350892,0.00015,2]
[392935738,1762156243563,-1360057.22109268,0.00015,2]
[392935739,1762156243572,-250.87991388,0.00015,2]
[392935740,1762156243581,-3466.01531735,0.00015,2]
[392935741,1762156243590,-400.0,0.00015,2]
[392935742,1762156243598,-424097.61232032,0.00015,2]
[392935743,1762156243609,-108610.55448224,0.00015,2]
[392935772,1762156246692,-715.51640703,0.00014899,2]
[392936237,1762156407263,150.0,0.00014047,2]
[392936239,1762156407480,150.0,0.00014047,120]
[392936261,1762156422844,631.74,0.00013699,2]
[392936667,1762156624982,200.0,0.00014173,2]
[392936668,1762156665578,1000.0,0.00014173,2]
[392936669,1762156731218,150.0,0.00014173,2]
[392936670,1762156745058,175.0,0.000144,2]
[392936671,1762156874181,186.34,0.00011107,2]
[392936672,1762156874381,186.34,0.00012958,2]
[392936673,1762157059103,281.29,0.00013862,2]
[392936674,1762157066271,610.0,0.00014173,2]
[392936676,1762157388502,1132.0,0.00015,6]
[392936682,1762157431553,-281.29,0.00014633,2]
[392936683,1762157431563,-195.0,0.00014639,2]
[392936684,1762157431574,-66.38058424,0.00014644,2]
[392936685,1762157431586,-183.61941576,0.00014644,2]
[392936686,1762157431595,-195.0,0.00014656,2]
[392936687,1762157431604,-250.0,0.00014677,2]
[392936688,1762157431614,-215.79980123,0.0001468,2]
[392936689,1762157431624,-267.73597204,0.00014699,2]
[392936690,1762157431633,-1200.0,0.00014779,2]
[392936691,1762157431642,-174.23062065,0.0001478,2]
[392936692,1762157431651,-1126.5680951,0.0001478,2]
[392936693,1762157431661,-160.90697574,0.0001478,2]
[392936694,1762157431670,-302.2310316,0.0001478,2]
[392936695,1762157431682,-246.0,0.0001479,2]
[392936696,1762157431691,-150.0,0.0001479,2]
[392936697,1762157431700,-300.0,0.0001479,2]
[392936698,1762157431709,-300.0,0.0001479,2]
[392936699,1762157431718,-322.6107,0.00014791,2]
[392936700,1762157431727,-514.84070869,0.00014791,2]
[392936701,1762157431736,-6000.0,0.00014791,2]
[392936702,1762157431745,-6000.0,0.00014791,2]
[392936703,1762157431754,-6000.0,0.00014791,2]
[392936705,1762157431763,-6000.0,0.00014791,2]
[392936707,1762157431772,-6000.0,0.00014791,2]
[392936708,1762157431781,-6000.0,0.00014791,2]
[392936709,1762157431790,-510.23419325,0.00014791,2]
[392936710,1762157431799,-151.0,0.00014791,2]
[392936711,1762157431808,-248.71531821,0.00014791,2]
[392936712,1762157431817,-1126.56809509,0.00014793,2]
[392936713,1762157431828,-302.23103159,0.00014793,2]
[392936714,1762157431837,-327.8417213,0.00014799,2]
[392936715,1762157431845,-45000.0,0.000148,2]
[392936716,1762157431856,-15000.0,0.000148,2]
[392936717,1762157431864,-1126.56809509,0.00014807,2]
[392936718,1762157431874,-302.23103159,0.00014807,2]
[392936719,1762157431883,-186.34,0.00014809,2]
[392936720,1762157431892,-1126.56809509,0.0001482,2]
[392936722,1762157431902,-302.23103159,0.0001482,2]
[392936724,1762157431911,-1126.56809509,0.00014833,2]
[392936726,1762157431921,-302.23103159,0.00014833,2]
[392936728,1762157431930,-193.0,0.00014834,2]
[392936730,1762157431940,-193.0,0.0001484,2]
[392936732,1762157431949,-1126.56809509,0.00014847,2]
[392936734,1762157431959,-302.23103159,0.00014847,2]
[392936736,1762157431968,-1425.0,0.00014848,2]
[392936738,1762157431977,-1126.56809509,0.0001486,2]
[392936740,1762157431986,-302.23103159,0.0001486,2]
[392936742,1762157431995,-193.0,0.0001486,2]
[392936744,1762157432004,-500.0,0.00014873,2]
[392936746,1762157432014,-500.0,0.00014873,2]
[392936748,1762157432023,-465.40478572,0.00014873,2]
[392936750,1762157432032,-500.0,0.00014873,2]
[392936752,1762157432041,-496.14270283,0.00014873,2]
[392936754,1762157432050,-500.0,0.00014873,2]
[392936756,1762157432059,-404.70521757,0.00014873,2]
[392936758,1762157432068,-500.0,0.00014873,2]
[392936761,1762157432079,-500.0,0.00014873,2]
[392936763,1762157432088,-470.29522732,0.00014873,2]
[392936765,1762157432097,-500.0,0.00014873,2]
[392936767,1762157432106,-500.0,0.00014873,2]
[392936769,1762157432115,-500.0,0.00014873,2]
[392936770,1762157432125,-501.03217744,0.00014873,2]
[392936773,1762157432134,-500.0,0.00014873,2]
[392936775,1762157432148,-157.26812313,0.00014873,2]
[392936777,1762157432157,-224.78415886,0.00014873,2]
[392936779,1762157432166,-500.0,0.00014873,2]
[392936781,1762157432175,-506.7793708,0.00014873,2]
[392936783,1762157432186,-500.0,0.00014873,2]
[392936784,1762157432195,-606.20059403,0.00014873,2]
[392936786,1762157432204,-500.0,0.00014873,2]
[392936788,1762157432213,-500.0,0.00014873,2]
[392936790,1762157432223,-500.0,0.00014873,2]
[392936792,1762157432232,-505.08327487,0.00014873,2]
[392936794,1762157432241,-473.75758089,0.00014873,2]
[392936796,1762157432251,-500.0,0.00014873,2]
[392936798,1762157432261,-500.0,0.00014873,2]
[392936800,1762157432270,-500.0,0.00014873,2]
[392936802,1762157432279,-821.59,0.00014873,2]
[392936804,1762157432288,-1126.56809509,0.00014873,2]
[392936806,1762157432298,-302.23103159,0.00014873,2]
[392936809,1762157432307,-586.43442042,0.00014878,2]
[392936810,1762157432316,-273.5516308,0.00014878,2]
[392936813,1762157432330,-500.0,0.00014878,2]
[392936814,1762157432340,-500.0,0.00014878,2]
[392936816,1762157432349,-500.0,0.00014878,2]
[392936819,1762157432359,-331.3447877,0.00014878,2]
[392936821,1762157432368,-500.0,0.00014878,2]
[392936822,1762157432377,-500.0,0.00014878,2]
[392936824,1762157432386,-636.4763,0.00014879,2]
[392936826,1762157432396,-17735.32229283,0.00014879,2]
[392936829,1762157432408,-29396.39081529,0.00014879,2]
[392936831,1762157432419,-7847.8349536,0.00014879,2]
[392936833,1762157432430,-4168.63298839,0.00014879,2]
[392936835,1762157432440,-6268.16078329,0.00014879,2]
[392936838,1762157432458,-51631.60901499,0.00014879,2]
[392936841,1762157432470,-261.29082891,0.00014879,2]
[392937369,1762157437612,-67749.87170289,0.00014879,2]
[392937370,1762157437623,-4198.5551529,0.00014879,2]
[392937374,1762157437678,-11160.0,0.00014879,2]
[392937584,1762157439772,-4062.08352272,0.00014879,2]
[392937595,1762157439867,-2704.19177939,0.00014879,2]
[392937597,1762157439878,-5586.0,0.00014879,2]
[392937600,1762157439901,-1076.7979285,0.00014879,2]
[392937602,1762157439912,-206153.2582363,0.00014879,2]
[392937604,1762157439922,-200.0,0.0001488,2]
[392937606,1762157439931,-1126.56809509,0.00014887,2]
[392937608,1762157439941,-302.23103159,0.00014887,2]
[392937610,1762157439950,-150.0,0.00014896,2]
[392937612,1762157439959,-607.0,0.00014896,2]
[392937614,1762157439968,-1446.365,0.00014896,2]
[392937616,1762157439978,-40000.0,0.000149,2]
[392937618,1762157439987,-164.27891656,0.000149,2]
[392937620,1762157439997,-174.23062064,0.000149,2]
[392937623,1762157440006,-227.50752535,0.000149,2]
[392937624,1762157440016,-1901.6981,0.000149,2]
[392937626,1762157440025,-1126.56809509,0.000149,2]
[392937628,1762157440035,-150.0,0.000149,2]
[392937631,1762157440044,-637.0,0.000149,2]
[392937632,1762157440053,-263.28695476,0.000149,2]
[392937634,1762157440062,-150.0,0.000149,2]
[392937637,1762157440071,-302.23103159,0.000149,2]
[392937638,1762157440082,-500.0,0.000149,2]
[392937640,1762157440091,-500.0,0.000149,2]
[392937642,1762157440100,-201.04649518,0.000149,2]
[392937645,1762157440110,-3570.10195425,0.000149,2]
[392937647,1762157440119,-193.0,0.00014908,2]
[392937648,1762157440128,-193.0,0.00014972,2]
[392937650,1762157440138,-500.0,0.00014973,2]
[392937653,1762157440152,-161.09233194,0.00014973,2]
[392937654,1762157440161,-500.0,0.00014973,2]
[392937656,1762157440171,-500.0,0.00014973,2]
[392937658,1762157440180,-500.0,0.00014973,2]
[392937661,1762157440191,-500.0,0.00014973,2]
[392937663,1762157440200,-500.0,0.00014973,2]
[392937665,1762157440210,-500.14735904,0.00014973,2]
[392937667,1762157440220,-500.28973591,0.00014973,2]
[392937669,1762157440229,-501.57121462,0.00014973,2]
[392937671,1762157440238,-330.71223307,0.00014973,2]
[392937673,1762157440248,-481.20917835,0.00014973,2]
[392937675,1762157440257,-513.05694483,0.00014973,2]
[392937676,1762157440271,-500.0,0.00014973,2]
[392937679,1762157440280,-229.67599749,0.00014973,2]
[392937681,1762157440289,-501.38630198,0.00014973,2]
[392937682,1762157440298,-500.0,0.00014973,2]
[392937684,1762157440307,-155.14402649,0.00014973,2]
[392937686,1762157440316,-500.0,0.00014973,2]
[392937688,1762157440325,-500.0,0.00014973,2]
[392937690,1762157440335,-500.6590224,0.00014973,2]
[392937692,1762157440344,-500.0,0.00014973,2]
[392937694,1762157440353,-502.97445239,0.00014973,2]
[392937697,1762157440362,-632.5089604,0.00014973,2]
[392937699,1762157440373,-500.85120301,0.00014973,2]
[392937701,1762157440382,-500.0,0.00014973,2]
[392937703,1762157440391,-500.0,0.00014973,2]
[392937705,1762157440400,-500.0,0.00014973,2]
[392937707,1762157440409,-596.03695751,0.00014973,2]
[392937709,1762157440418,-500.0,0.00014973,2]
[392937711,1762157440428,-162.3387926,0.00014973,2]
[392937713,1762157440438,-167.27802889,0.00014973,2]
[392937715,1762157440448,-500.0,0.00014973,2]
[392937717,1762157440457,-500.0,0.00014973,2]
[392937719,1762157440466,-165.68947313,0.00014973,2]
[392937721,1762157440476,-280.18631761,0.00014973,2]
[392937723,1762157440485,-500.52001213,0.00014973,2]
[392937725,1762157440494,-500.0,0.00014973,2]
[392937727,1762157440503,-501.46660778,0.00014973,2]
[392937729,1762157440512,-500.27032305,0.00014973,2]
[392937731,1762157440523,-36213.80134693,0.00014973,2]
[392937733,1762157440532,-342.52502965,0.00014979,2]
[392937735,1762157440541,-208.06641548,0.0001499,2]
[392937737,1762157440550,-208.06641548,0.0001499,2]
[392937739,1762157440559,-208.06641548,0.0001499,2]
[392937762,1762157440772,-3751.4611662,0.00014991,2]
[392937764,1762157440781,-500.0,0.00014999,2]
[392937766,1762157440791,-500.0,0.00014999,2]
[392937767,1762157440800,-432.36280577,0.00014999,2]
[392937768,1762157440809,-500.0,0.00014999,2]
[392937769,1762157440818,-500.0,0.00014999,2]
[392937770,1762157440827,-500.0,0.00014999,2]
[392937771,1762157440835,-500.0,0.00014999,2]
[392937772,1762157440844,-266.17310046,0.00014999,2]
[392937773,1762157440853,-155.0,0.00014999,2]
[392937774,1762157440863,-666.0,0.00014999,2]
[392937775,1762157440872,-666.0,0.00014999,2]
[392937776,1762157440881,-348564.74148087,0.00015,2]
[392937777,1762157440890,-186803.06353657,0.00015,2]
[392937779,1762157440899,-700.1531496,0.00015,2]
[392937781,1762157440908,-143899.16281512,0.00015,2]
[392937784,1762157440924,-29999.96595,0.00015,2]
[392937968,1762157442635,-905.0,0.00014883,2]
[392937970,1762157442644,-10099.50753292,0.00015,2]
[392937972,1762157442655,-767.335403,0.00015,2]
[392937975,1762157442666,-3080653.20071639,0.00015,2]
[392937977,1762157442675,-163815.55163468,0.00015,2]
[392937979,1762157442685,-153.67684116,0.00015,2]
[392937981,1762157442694,-153.67684115,0.00015,2]
[392937983,1762157442703,-153.67684115,0.00015,2]
[392937985,1762157442712,-153.67684115,0.00015,2]
[392937987,1762157442721,-153.67684115,0.00015,2]
[392937989,1762157442730,-153.67684115,0.00015,2]
[392937991,1762157442739,-250.0,0.00015,2]
[392937993,1762157442748,-254.7,0.00015,2]
[392937995,1762157442757,-717101.67517253,0.00015,2]
[392937997,1762157442769,-17097.53341422,0.00015,2]
[392938245,1762157445540,-511.21741462,0.00015,2]
[392938259,1762157445630,-2767.78258538,0.00015,2]
[392938262,1762157445640,-233580.23700973,0.00015,2]
[392938275,1762157445707,-23445.70037758,0.00015,2]
[392938278,1762157445718,-2792.02791415,0.00015,2]
[392938288,1762157445763,-2202542.9048262,0.00015,2]
[392939441,1762157495374,1600.0,0.00013858,2]
[392939442,1762157524240,250.0,0.00013858,2]
[392939444,1762157656101,166.66,0.00013699,2]
[392939445,1762157656300,166.66,0.00013869,2]
[392939446,1762157656509,166.66,0.00014039,2]
[392939447,1762157656726,166.66,0.0001421,2]
[392939448,1762157656922,166.66,0.0001438,2]
[392939451,1762157801897,1000.0,0.00013699,2]
[392939454,1762157854260,175.14351317,0.00015,3]
[392939455,1762157908508,163.6092921,0.00014,2]
[392939456,1762157936022,166.67,0.00014274,2]
[392939457,1762157970299,-159.48062062,0.00014551,2]
[392939458,1762158044788,396.0,0.00014382,2]
[392939460,1762158309046,1852.42,0.00014008,2]
[392939476,1762158495754,-7.17937938,0.00014551,2]
[392939477,1762158495779,-197.98967598,0.0001456,2]
[392939479,1762158500953,-52.01032402,0.0001456,2]
[392939480,1762158500974,-154.66724072,0.00014569,2]
[392939485,1762158559892,4327.09,0.00013886,2]
[392939492,1762158631600,-40.33275928,0.00014569,2]
[392939494,1762158631609,-250.0,0.00014625,2]
[392939495,1762158631618,-298.35083831,0.0001468,2]
[392939496,1762158631628,-163.47427891,0.0001468,2]
[392939497,1762158631637,-298.35083823,0.00014704,2]
[392939498,1762158631646,-264.0,0.00014726,2]
[392939499,1762158631655,-298.35083823,0.00014729,2]
[392939500,1762158631664,-298.35083823,0.00014753,2]
[392939501,1762158631673,-248.71531821,0.0001477,2]
[392939502,1762158631682,-1200.0,0.00014771,2]
[392939503,1762158631692,-300.0,0.00014772,2]
[392939504,1762158631701,-500.0,0.00014773,2]
[392939505,1762158631710,-500.0,0.00014773,2]
[392939506,1762158631721,-500.0,0.00014773,2]
[392939507,1762158631731,-500.0,0.00014773,2]
[392939508,1762158631740,-500.0,0.00014773,2]
[392939509,1762158631749,-500.0,0.00014773,2]
[392939510,1762158631758,-298.35083823,0.00014778,2]
[392939511,1762158631767,-410.50409429,0.00014778,2]
[392939512,1762158631776,-191.48614156,0.00014778,2]
[392939513,1762158631785,-500.0,0.00014778,2]
[392939514,1762158631795,-500.0,0.00014778,2]
[392939515,1762158631804,-150.0,0.00014778,2]
[392939516,1762158631813,-27385.63265682,0.00014779,2]
[392939517,1762158631826,-49079.08314396,0.00014779,2]
[392939518,1762158631841,-1245.16315287,0.00014779,2]
[392939519,1762158631852,-452.11662572,0.00014779,2]
[392939520,1762158631862,-440.56810984,0.00014779,2]
[392939521,1762158631873,-1000.0,0.00014779,2]
[392939523,1762158631885,-510.0,0.00014779,2]
[392939524,1762158631903,-339887.43631079,0.00014779,2]
[392939525,1762158631912,-30000.0,0.0001478,2]
[392939526,1762158631921,-298.35083823,0.00014802,2]
[392939528,1762158631933,-500.0,0.00014822,2]
[392939530,1762158631942,-298.35083823,0.00014827,2]
[392939532,1762158631952,-298.35083823,0.00014851,2]
[392939534,1762158631961,-298.35083823,0.00014876,2]
[392939536,1762158631970,-200.0,0.0001488,2]
[392939537,1762158631979,-5000.0,0.0001488,2]
[392939539,1762158631989,-164.27891655,0.000149,2]
[392939541,1762158631998,-298.35083823,0.000149,2]
[392939543,1762158632007,-1018.36993264,0.000149,2]
[392939545,1762158632016,-203.97594528,0.000149,2]
[392939547,1762158632025,-727.50575024,0.000149,2]
[392939549,1762158632034,-189.42492088,0.000149,2]
[392939551,1762158632044,-163.47427886,0.00014927,2]
[392939553,1762158632053,-1430.0,0.00014959,2]
[392939555,1762158632062,-500.0,0.00014959,2]
[392939557,1762158632071,-208.06641548,0.0001497,2]
[392939559,1762158632080,-208.06641548,0.0001497,2]
[392939561,1762158632089,-331.92189858,0.00014973,2]
[392939563,1762158632100,-276.73119563,0.00014973,2]
[392939565,1762158632113,-500.0,0.00014973,2]
[392939567,1762158632122,-251.93803896,0.00014973,2]
[392939569,1762158632131,-500.0,0.00014973,2]
[392939571,1762158632140,-500.0,0.00014973,2]
[392939573,1762158632149,-500.0,0.00014973,2]
[392939575,1762158632162,-500.0,0.00014973,2]
[392939577,1762158632171,-502.9947481,0.00014973,2]
[392939579,1762158632184,-500.0,0.00014973,2]
[392939581,1762158632193,-718.89,0.00014973,2]